fUSD/lending_fUSD_20241023
["ID","MTS","AMOUNT","RATE_DAILY","PERIOD"]
[340673120,1729641609127,250.0,0.0001,2]
[340673122,1729641947144,-401.48091029,0.000107,2]
[340673123,1729641958102,-1148.91908971,0.000107,2]
[340673124,1729641958122,-5.96891469,0.000109,2]
[340673136,1729642231792,-150.0,0.00011,2]
[340673137,1729642231803,-167.47423098,0.000119,2]
[340673138,1729642231812,-300.0,0.00012,2]
[340673139,1729642231821,-167.47423096,0.000129,2]
[340673140,1729642231830,-167.47423096,0.000139,2]
[340673141,1729642231840,-350.0,0.00014,2]
[340673142,1729642231849,-480.78472167,0.000149,2]
[340673143,1729642231868,-731.15094616,0.000149,2]
[340673144,1729642231879,-2903.71306986,0.000149,2]
[340673145,1729642231890,-3421.55845167,0.000149,2]
[340673146,1729642231901,-2228.53585342,0.000149,2]
[340673147,1729642231920,-2783.96975722,0.000149,2]
[340673148,1729642231930,-373.0,0.00015,2]
[340673149,1729642231939,-152.13,0.00015342,2]
[340673150,1729642231949,-178.27,0.00015342,2]
[340673151,1729642231958,-26192.19897151,0.00015843,2]
[340673152,1729642231967,-499.99,0.00015843,2]
[340673153,1729642231977,-400.0,0.00016,2]
[340673154,1729642231987,-264.337,0.00017688,2]
[340673155,1729642231996,-450.0,0.00018,2]
[340673156,1729642232006,-152.30230482,0.000182,2]
[340673157,1729642232015,-150.0,0.000183,7]
[340673158,1729642232025,-180.19,0.00019178,2]
[340673159,1729642232036,-226.863,0.00019972,2]
[340673160,1729642232045,-555.0,0.00019972,2]
[340673161,1729642232055,-1033.346,0.00019972,2]
[340673162,1729642232064,-1616.113,0.00019972,2]
[340673163,1729642232073,-714.696,0.00019972,2]
[340673164,1729642232083,-500.0,0.0002,2]
[340673165,1729642232092,-4513.912,0.00020062,2]
[340673166,1729642232102,-150.0,0.00020062,2]
[340673167,1729642232111,-979.5542546,0.00020062,2]
[340673168,1729642232122,-104.4457454,0.00020062,2]
[340673169,1729642232131,-200.0,0.00020072,2]
[340673170,1729642232141,-290.064,0.00020072,2]
[340673171,1729642232150,-164.025,0.00020072,2]
[340673172,1729642232159,-250.0,0.00020072,2]
[340673173,1729642232168,-281.157,0.00020072,2]
[340673174,1729642232178,-250.0,0.00020072,2]
[340673175,1729642232187,-54.75327273,0.00020688,2]
[340673176,1729642232199,-95.24672727,0.00020688,2]
[340673177,1729642232209,-152.13,0.00021745,2]
[340673178,1729642232218,-550.0,0.00022,2]
[340673179,1729642232229,-219.82347273,0.00023062,2]
[340673180,1729642232240,-474.46635641,0.00023062,2]
[340673181,1729642232318,-389.71017086,0.00023062,2]
[340673182,1729642232328,-150.0,0.00023072,2]
[340673183,1729642232341,-150.0,0.00023072,2]
[340673184,1729642232350,-150.0,0.00023072,2]
[340673185,1729642232360,-1882.42634628,0.00023361,2]
[340673186,1729642232369,-198.05,0.000234,14]
[340673187,1729642232378,-600.0,0.00024,2]
[340673188,1729642232387,-375.0,0.00024657,2]
[340673189,1729642232397,-290.24,0.00025435,2]
[340673190,1729642232407,-650.0,0.00026,2]
[340673191,1729642232417,-1084.0,0.00026062,2]
[340673192,1729642232427,-150.0,0.00026072,2]
[340673193,1729642232436,-150.0,0.00026072,2]
[340673194,1729642232445,-500.0,0.0002701,10]
[340673195,1729642232455,-500.0,0.0002701,10]
[340673196,1729642232464,-500.0,0.0002701,10]
[340673197,1729642232474,-500.0,0.0002701,10]
[340673198,1729642232484,-500.0,0.0002701,10]
[340673199,1729642232493,-500.0,0.0002701,10]
[340673200,1729642232502,-500.0,0.0002701,10]
[340673201,1729642232511,-500.0,0.0002701,10]
[340673202,1729642232521,-217.43,0.00027318,2]
[340673203,1729642232532,-500.0,0.00027431,2]
[340673204,1729642232542,-250.0,0.00027599,2]
[340673205,1729642232552,-670.79,0.00027671,2]
[340673206,1729642232562,-290.24,0.00027699,2]
[340673207,1729642232573,-170.43,0.00027827,2]
[340673208,1729642232582,-200.0,0.00027832,2]
[340673209,1729642232592,-419.05,0.00027955,2]
[340673210,1729642232601,-636.83,0.00027996,2]
[340673211,1729642232611,-700.0,0.00028,2]
[340673212,1729642232620,-592.08988006,0.00028,30]
[340673213,1729642232630,-1000.0,0.00028008,2]
[340673214,1729642232639,-384.193,0.00028147,18]
[340673215,1729642232648,-152.13,0.00028147,2]
[340673216,1729642232658,-158.84,0.00028211,30]
[340673217,1729642232667,-200.0,0.00028229,2]
[340673218,1729642232676,-152.28,0.00028429,2]
[340673219,1729642232686,-1000.0,0.00028536,2]
[340673220,1729642232696,-250.0,0.00028572,2]
[340673221,1729642232705,-250.0,0.00028632,2]
[340673222,1729642232714,-2751.0,0.00028642,2]
[340673223,1729642232724,-1000.0,0.00028715,7]
[340673224,1729642232733,-1084.0,0.00029062,2]
[340673225,1729642232743,-290.24,0.00029963,2]
[340673226,1729642232752,-750.0,0.0003,2]
[340673227,1729642232761,-500.94326638,0.0003001,10]
[340673228,1729642232771,-436.70407889,0.0003001,10]
[340673229,1729642232781,-500.0,0.0003001,10]
[340673230,1729642232791,-180.0,0.00030272,120]
[340673231,1729642232800,-1084.0,0.00032062,2]
[340673232,1729642232810,-1000.0,0.00032103,2]
[340673233,1729642232819,-290.24,0.00032227,2]
[340673234,1729642232828,-164.96731547,0.00032877,2]
[340673235,1729642232838,-152.28,0.00033238,2]
[340673236,1729642232847,-170.43,0.00033393,2]
[340673237,1729642232857,-360.6,0.0003349,10]
[340673238,1729642232866,-300.5,0.0003349,10]
[340673239,1729642232876,-500.0,0.000335,2]
[340673240,1729642232885,-500.0,0.000335,2]
[340673241,1729642232894,-500.0,0.000335,2]
[340673242,1729642232903,-500.0,0.000335,2]
[340673243,1729642232913,-500.0,0.000335,2]
[340673244,1729642232922,-500.0,0.000335,2]
[340673245,1729642232932,-500.0,0.000335,2]
[340673246,1729642232942,-500.0,0.000335,2]
[340673247,1729642232951,-500.0,0.000335,2]
[340673248,1729642232960,-500.0,0.000335,2]
[340673249,1729642232969,-500.0,0.000335,2]
[340673250,1729642232979,-500.0,0.000335,2]
[340673251,1729642232988,-500.0,0.000335,2]
[340673252,1729642232998,-500.0,0.000335,2]
[340673253,1729642233007,-500.0,0.000335,2]
[340673254,1729642233017,-500.0,0.000335,2]
[340673255,1729642233027,-500.0,0.000335,2]
[340673256,1729642233038,-500.0,0.000335,2]
[340673257,1729642233048,-500.0,0.000335,2]
[340673258,1729642233058,-500.0,0.000335,2]
[340673259,1729642233068,-500.0,0.000335,2]
[340673260,1729642233078,-500.0,0.000335,2]
[340673261,1729642233087,-500.0,0.000335,2]
[340673262,1729642233097,-500.0,0.000335,2]
[340673263,1729642233106,-500.0,0.000335,2]
[340673264,1729642233117,-500.0,0.000335,2]
[340673265,1729642233127,-500.0,0.000335,2]
[340673266,1729642233137,-500.0,0.000335,2]
[340673267,1729642233147,-500.0,0.000335,2]
[340673268,1729642233157,-500.0,0.000335,2]
[340673269,1729642233167,-500.0,0.000335,2]
[340673270,1729642233177,-500.0,0.000335,2]
[340673271,1729642233187,-500.0,0.000335,2]
[340673272,1729642233198,-500.0,0.000335,2]
[340673273,1729642233208,-500.0,0.000335,2]
[340673274,1729642233218,-500.0,0.000335,2]
[340673275,1729642233227,-500.0,0.000335,2]
[340673276,1729642233238,-500.0,0.000335,2]
[340673277,1729642233247,-500.0,0.000335,2]
[340673278,1729642233257,-500.0,0.000335,2]
[340673279,1729642233267,-500.0,0.000335,2]
[340673280,1729642233277,-500.0,0.000335,2]
[340673281,1729642233287,-500.0,0.000335,2]
[340673282,1729642233297,-500.0,0.000335,2]
[340673283,1729642233306,-500.0,0.000335,2]
[340673284,1729642233315,-500.0,0.000335,2]
[340673285,1729642233326,-500.0,0.000335,2]
[340673286,1729642233337,-500.0,0.000335,2]
[340673287,1729642233347,-500.0,0.000335,2]
[340673288,1729642233358,-500.0,0.000335,2]
[340673289,1729642233368,-500.0,0.000335,2]
[340673290,1729642233377,-500.0,0.000335,2]
[340673291,1729642233386,-500.0,0.000335,2]
[340673292,1729642233396,-500.0,0.000335,2]
[340673293,1729642233405,-500.0,0.000335,2]
[340673294,1729642233415,-500.0,0.000335,2]
[340673295,1729642233424,-500.0,0.000335,2]
[340673296,1729642233434,-500.0,0.000335,2]
[340673297,1729642233443,-500.0,0.000335,2]
[340673298,1729642233452,-500.0,0.000335,2]
[340673299,1729642233462,-500.0,0.000335,2]
[340673300,1729642233471,-500.0,0.000335,2]
[340673301,1729642233481,-500.0,0.000335,2]
[340673302,1729642233490,-500.0,0.000335,2]
[340673303,1729642233499,-500.0,0.000335,2]
[340673304,1729642233509,-500.0,0.000335,2]
[340673305,1729642233519,-500.0,0.000335,2]
[340673306,1729642233528,-500.0,0.000335,2]
[340673307,1729642233539,-500.0,0.000335,2]
[340673308,1729642233549,-500.0,0.000335,2]
[340673309,1729642233558,-500.0,0.000335,2]
[340673310,1729642233568,-500.0,0.000335,2]
[340673311,1729642233577,-500.0,0.000335,2]
[340673312,1729642233587,-500.0,0.000335,2]
[340673313,1729642233596,-500.0,0.000335,2]
[340673314,1729642233605,-500.0,0.000335,2]
[340673315,1729642233615,-500.0,0.000335,2]
[340673316,1729642233624,-500.0,0.000335,2]
[340673317,1729642233633,-500.0,0.000335,2]
[340673318,1729642233643,-500.0,0.000335,2]
[340673319,1729642233653,-500.0,0.000335,2]
[340673320,1729642233662,-500.0,0.000335,2]
[340673321,1729642233671,-500.0,0.000335,2]
[340673322,1729642233681,-500.0,0.000335,2]
[340673323,1729642233691,-500.0,0.000335,2]
[340673324,1729642233700,-500.0,0.000335,2]
[340673325,1729642233710,-500.0,0.000335,2]
[340673326,1729642233719,-500.0,0.000335,2]
[340673327,1729642233729,-500.0,0.000335,2]
[340673328,1729642233738,-500.0,0.000335,2]
[340673329,1729642233748,-500.0,0.000335,2]
[340673330,1729642233758,-500.0,0.000335,2]
[340673331,1729642233767,-500.0,0.000335,2]
[340673332,1729642233777,-500.0,0.000335,2]
[340673333,1729642233789,-500.0,0.000335,2]
[340673334,1729642233798,-460.45374743,0.000335,2]
[340673335,1729642234567,-39.54625257,0.000335,2]
[340673336,1729642234577,-385.28972533,0.000335,2]
[340673446,1729642239748,-114.71027467,0.000335,2]
[340673447,1729642239757,-319.20330117,0.000335,2]
[340673448,1729642239853,-180.79669883,0.000335,2]
[340673449,1729642239863,-500.0,0.000335,2]
[340673450,1729642239873,-500.0,0.000335,2]
[340673451,1729642239883,-500.0,0.000335,2]
[340673452,1729642239893,-500.0,0.000335,2]
[340673453,1729642239903,-500.0,0.000335,2]
[340673454,1729642239914,-500.0,0.000335,2]
[340673455,1729642239925,-500.0,0.000335,2]
[340673456,1729642239935,-240.30989542,0.000335,2]
[340673457,1729642239946,-259.69010458,0.000335,2]
[340673458,1729642239956,-500.0,0.000335,2]
[340673459,1729642239965,-9.09989542,0.000335,2]
[340673462,1729642243037,-500.0,0.000285,2]
[340673463,1729642243048,-395.56321627,0.0002987,2]
[340673464,1729642243057,-490.90010458,0.000335,2]
[340673465,1729642243066,-500.0,0.000335,2]
[340673466,1729642243076,-291.78667915,0.000335,2]
[340673470,1729642245862,-208.21332085,0.000335,2]
[340673471,1729642245873,-500.0,0.000335,2]
[340673472,1729642245883,-500.0,0.000335,2]
[340673473,1729642245892,-500.0,0.000335,2]
[340673474,1729642245902,-500.0,0.000335,2]
[340673475,1729642245913,-500.0,0.000335,2]
[340673476,1729642245923,-500.0,0.000335,2]
[340673477,1729642245932,-500.0,0.000335,2]
[340673478,1729642245942,-500.0,0.000335,2]
[340673479,1729642245951,-500.0,0.000335,2]
[340673480,1729642245961,-500.0,0.000335,2]
[340673481,1729642245970,-500.0,0.000335,2]
[340673482,1729642245980,-500.0,0.000335,2]
[340673483,1729642245989,-500.0,0.000335,2]
[340673484,1729642246000,-500.0,0.000335,2]
[340673485,1729642246011,-500.0,0.000335,2]
[340673486,1729642246020,-500.0,0.000335,2]
[340673487,1729642246030,-500.0,0.000335,2]
[340673488,1729642246039,-500.0,0.000335,2]
[340673489,1729642246050,-500.0,0.000335,2]
[340673490,1729642246059,-500.0,0.000335,2]
[340673491,1729642246068,-500.0,0.000335,2]
[340673492,1729642246077,-500.0,0.000335,2]
[340673493,1729642246087,-500.0,0.000335,2]
[340673494,1729642246096,-500.0,0.000335,2]
[340673495,1729642246105,-500.0,0.000335,2]
[340673496,1729642246114,-500.0,0.000335,2]
[340673497,1729642246124,-500.0,0.000335,2]
[340673498,1729642246135,-500.0,0.000335,2]
[340673499,1729642246144,-500.0,0.000335,2]
[340673500,1729642246154,-500.0,0.000335,2]
[340673501,1729642246164,-500.0,0.000335,2]
[340673502,1729642246174,-500.0,0.000335,2]
[340673503,1729642246183,-500.0,0.000335,2]
[340673504,1729642246193,-500.0,0.000335,2]
[340673505,1729642246202,-500.0,0.000335,2]
[340673506,1729642246212,-500.0,0.000335,2]
[340673507,1729642246221,-500.0,0.000335,2]
[340673508,1729642246231,-500.0,0.000335,2]
[340673509,1729642246241,-500.0,0.000335,2]
[340673510,1729642246251,-500.0,0.000335,2]
[340673511,1729642246261,-184.36,0.000335,31]
[340673512,1729642246271,-184.36,0.000335,31]
[340673513,1729642246281,-184.36,0.000335,31]
[340673514,1729642246290,-184.36,0.000335,31]
[340673515,1729642246305,-184.36,0.000335,31]
[340673516,1729642246314,-184.36,0.000335,31]
[340673517,1729642246324,-184.36,0.000335,31]
[340673518,1729642246333,-184.36,0.000335,31]
[340673519,1729642246346,-184.36,0.000335,31]
[340673520,1729642246356,-184.36,0.000335,31]
[340673521,1729642246365,-184.36,0.000335,31]
[340673522,1729642246374,-184.36,0.000335,31]
[340673523,1729642246384,-500.0,0.0003358,5]
[340673524,1729642246394,-422.335084,0.00034361,2]
[340673525,1729642246403,-150.0,0.00034485,2]
[340673526,1729642246413,-290.24,0.00034491,2]
[340673527,1729642246423,-150.0,0.00034512,2]
[340673528,1729642246433,-150.0,0.00034517,2]
[340673529,1729642246443,-150.0,0.00034528,2]
[340673530,1729642246452,-152.13,0.00034549,2]
[340673531,1729642246463,-422.335085,0.00034562,2]
[340673532,1729642246473,-150.0,0.00034566,2]
[340673533,1729642246484,-150.0,0.0003457,2]
[340673534,1729642246493,-150.0,0.00034625,2]
[340673535,1729642246503,-150.0,0.00034635,2]
[340673536,1729642246512,-150.0,0.00034666,2]
[340673537,1729642246522,-150.0,0.0003467,2]
[340673538,1729642246531,-150.0,0.00034673,2]
[340673539,1729642246540,-150.0,0.00034678,2]
[340673540,1729642246551,-150.0,0.00034704,2]
[340673541,1729642246560,-150.0,0.00034706,2]
[340673542,1729642246569,-150.0,0.0003471,2]
[340673543,1729642246579,-150.0,0.0003473,2]
[340673544,1729642246588,-150.0,0.00034731,2]
[340673545,1729642246597,-916.782,0.0003474,2]
[340673546,1729642246607,-7163.11895632,0.0003474,15]
[340673547,1729642246616,-197.4729,0.0003474,2]
[340673548,1729642246626,-6905.7051,0.0003474,2]
[340673549,1729642246635,-7500.0,0.0003474,2]
[340673550,1729642246645,-150.0,0.00034745,2]
[340673551,1729642246655,-150.0,0.00034746,2]
[340673552,1729642246664,-150.0,0.00034762,2]
[340673553,1729642246673,-615.38,0.000348,2]
[340673554,1729642246683,-998.82,0.000348,2]
[340673555,1729642246692,-157.54710303,0.00034804,2]
[340673556,1729642246701,-150.0,0.0003484,2]
[340673557,1729642246710,-150.0,0.0003484,2]
[340673558,1729642246720,-200.0,0.0003484,2]
[340673559,1729642246729,-150.0,0.0003484,2]
[340673560,1729642246739,-185.14986668,0.0003484,2]
[340673561,1729642246748,-200.0,0.0003484,2]
[340673562,1729642246758,-500.0,0.0003484,2]
[340673563,1729642246767,-500.0,0.0003484,2]
[340673564,1729642246777,-500.0,0.0003484,2]
[340673565,1729642246787,-500.0,0.0003484,2]
[340673566,1729642246798,-500.0,0.0003484,2]
[340673567,1729642246807,-500.0,0.0003484,2]
[340673568,1729642246816,-500.0,0.0003484,2]
[340673569,1729642246826,-500.0,0.0003484,2]
[340673570,1729642246835,-500.0,0.0003484,2]
[340673571,1729642246844,-500.0,0.0003484,2]
[340673572,1729642246853,-500.0,0.0003484,2]
[340673573,1729642246863,-500.0,0.0003484,2]
[340673574,1729642246872,-500.0,0.0003484,2]
[340673575,1729642246882,-500.0,0.0003484,2]
[340673576,1729642246891,-500.0,0.0003484,2]
[340673577,1729642246901,-500.0,0.0003484,2]
[340673578,1729642246911,-500.0,0.0003484,2]
[340673579,1729642246922,-500.0,0.0003484,2]
[340673580,1729642246931,-500.0,0.0003484,2]
[340673581,1729642246940,-500.0,0.0003484,2]
[340673582,1729642246949,-500.0,0.0003484,2]
[340673583,1729642246958,-500.0,0.0003484,2]
[340673584,1729642246967,-500.0,0.0003484,2]
[340673585,1729642246976,-500.0,0.0003484,2]
[340673586,1729642246986,-500.0,0.0003484,2]
[340673587,1729642246995,-500.0,0.0003484,2]
[340673588,1729642247004,-500.0,0.0003484,2]
[340673589,1729642247014,-500.0,0.0003484,2]
[340673590,1729642247022,-500.0,0.0003484,2]
[340673591,1729642247032,-500.0,0.0003484,2]
[340673592,1729642247041,-500.0,0.0003484,2]
[340673593,1729642247056,-500.0,0.0003484,2]
[340673594,1729642247066,-500.0,0.0003484,2]
[340673595,1729642247075,-500.0,0.0003484,2]
[340673596,1729642247085,-500.0,0.0003484,2]
[340673597,1729642247095,-500.0,0.0003484,2]
[340673598,1729642247104,-500.0,0.0003484,2]
[340673599,1729642247113,-500.0,0.0003484,2]
[340673600,1729642247123,-500.0,0.0003484,2]
[340673601,1729642247132,-500.0,0.0003484,2]
[340673602,1729642247141,-500.0,0.0003484,2]
[340673603,1729642247151,-500.0,0.0003484,2]
[340673604,1729642247160,-500.0,0.0003484,2]
[340673605,1729642247170,-500.0,0.0003484,2]
[340673606,1729642247179,-500.0,0.0003484,2]
[340673607,1729642247188,-500.0,0.0003484,2]
[340673608,1729642247198,-500.0,0.0003484,2]
[340673609,1729642247207,-500.0,0.0003484,2]
[340673610,1729642247217,-500.0,0.0003484,2]
[340673611,1729642247227,-500.0,0.0003484,2]
[340673612,1729642247236,-500.0,0.0003484,2]
[340673613,1729642247247,-500.0,0.0003484,2]
[340673614,1729642247256,-500.0,0.0003484,2]
[340673615,1729642247266,-500.0,0.0003484,2]
[340673616,1729642247275,-500.0,0.0003484,2]
[340673617,1729642247285,-500.0,0.0003484,2]
[340673618,1729642247299,-500.0,0.0003484,2]
[340673619,1729642247310,-500.0,0.0003484,2]
[340673620,1729642247319,-500.0,0.0003484,2]
[340673621,1729642247329,-500.0,0.0003484,2]
[340673622,1729642247338,-500.0,0.0003484,2]
[340673623,1729642247347,-500.0,0.0003484,2]
[340673624,1729642247357,-500.0,0.0003484,2]
[340673625,1729642247366,-500.0,0.0003484,2]
[340673626,1729642247375,-500.0,0.0003484,2]
[340673627,1729642247385,-500.0,0.0003484,2]
[340673628,1729642247394,-500.0,0.0003484,2]
[340673629,1729642247404,-500.0,0.0003484,2]
[340673630,1729642247413,-500.0,0.0003484,2]
[340673631,1729642247423,-500.0,0.0003484,2]
[340673632,1729642247433,-500.0,0.0003484,2]
[340673633,1729642247443,-500.0,0.0003484,2]
[340673634,1729642247453,-500.0,0.0003484,2]
[340673635,1729642247462,-500.0,0.0003484,2]
[340673636,1729642247471,-500.0,0.0003484,2]
[340673637,1729642247481,-500.0,0.0003484,2]
[340673638,1729642247491,-500.0,0.0003484,2]
[340673639,1729642247500,-500.0,0.0003484,2]
[340673640,1729642247509,-500.0,0.0003484,2]
[340673641,1729642247519,-500.0,0.0003484,2]
[340673642,1729642247528,-500.0,0.0003484,2]
[340673643,1729642247541,-500.0,0.0003484,2]
[340673644,1729642247555,-500.0,0.0003484,2]
[340673645,1729642247565,-500.0,0.0003484,2]
[340673646,1729642247574,-500.0,0.0003484,2]
[340673647,1729642247583,-500.0,0.0003484,2]
[340673648,1729642247592,-500.0,0.0003484,2]
[340673649,1729642247601,-500.0,0.0003484,2]
[340673650,1729642247611,-500.0,0.0003484,2]
[340673651,1729642247621,-500.0,0.0003484,2]
[340673652,1729642247630,-500.0,0.0003484,2]
[340673653,1729642247640,-500.0,0.0003484,2]
[340673654,1729642247649,-500.0,0.0003484,2]
[340673655,1729642247659,-500.0,0.0003484,2]
[340673656,1729642247668,-500.0,0.0003484,2]
[340673657,1729642247678,-500.0,0.0003484,2]
[340673658,1729642247687,-500.0,0.0003484,2]
[340673659,1729642247696,-500.0,0.0003484,2]
[340673660,1729642247706,-500.0,0.0003484,2]
[340673661,1729642247715,-500.0,0.0003484,2]
[340673662,1729642247724,-500.0,0.0003484,2]
[340673663,1729642247734,-500.0,0.0003484,2]
[340673664,1729642247743,-500.0,0.0003484,2]
[340673665,1729642247752,-500.0,0.0003484,2]
[340673666,1729642247761,-500.0,0.0003484,2]
[340673667,1729642247770,-500.0,0.0003484,2]
[340673668,1729642247779,-500.0,0.0003484,2]
[340673669,1729642247789,-500.0,0.0003484,2]
[340673670,1729642247801,-500.0,0.0003484,2]
[340673671,1729642247810,-500.0,0.0003484,2]
[340673672,1729642247819,-500.0,0.0003484,2]
[340673673,1729642247829,-500.0,0.0003484,2]
[340673674,1729642247838,-500.0,0.0003484,2]
[340673675,1729642247847,-500.0,0.0003484,2]
[340673676,1729642247856,-500.0,0.0003484,2]
[340673677,1729642247866,-500.0,0.0003484,2]
[340673678,1729642247875,-500.0,0.0003484,2]
[340673679,1729642247884,-500.0,0.0003484,2]
[340673680,1729642247893,-500.0,0.0003484,2]
[340673681,1729642247903,-500.0,0.0003484,2]
[340673682,1729642247912,-500.0,0.0003484,2]
[340673683,1729642247922,-500.0,0.0003484,2]
[340673684,1729642247931,-500.0,0.0003484,2]
[340673685,1729642247941,-500.0,0.0003484,2]
[340673686,1729642247950,-500.0,0.0003484,2]
[340673687,1729642247960,-500.0,0.0003484,2]
[340673688,1729642247969,-500.0,0.0003484,2]
[340673689,1729642247978,-500.0,0.0003484,2]
[340673690,1729642247987,-500.0,0.0003484,2]
[340673691,1729642247997,-500.0,0.0003484,2]
[340673692,1729642248007,-500.0,0.0003484,2]
[340673693,1729642248017,-500.0,0.0003484,2]
[340673694,1729642248026,-500.0,0.0003484,2]
[340673695,1729642248035,-500.0,0.0003484,2]
[340673696,1729642248046,-500.0,0.0003484,2]
[340673697,1729642248056,-500.0,0.0003484,2]
[340673698,1729642248065,-500.0,0.0003484,2]
[340673699,1729642248075,-500.0,0.0003484,2]
[340673700,1729642248084,-500.0,0.0003484,2]
[340673701,1729642248094,-500.0,0.0003484,2]
[340673702,1729642248103,-500.0,0.0003484,2]
[340673703,1729642248112,-500.0,0.0003484,2]
[340673704,1729642248121,-500.0,0.0003484,2]
[340673705,1729642248130,-500.0,0.0003484,2]
[340673706,1729642248140,-500.0,0.0003484,2]
[340673707,1729642248301,-500.0,0.0003484,2]
[340673708,1729642248311,-500.0,0.0003484,2]
[340673709,1729642248321,-500.0,0.0003484,2]
[340673710,1729642248331,-500.0,0.0003484,2]
[340673711,1729642248343,-2523.0555355,0.00034849,2]
[340673712,1729642248353,-294.06349291,0.00034849,120]
[340673713,1729642248363,-2608.3427648,0.0003488,2]
[340673714,1729642248373,-37562.3313065,0.0003488,2]
[340673715,1729642248384,-2708.0,0.00034904,2]
[340673716,1729642248394,-1084.0,0.00035062,2]
[340673717,1729642248406,-1000.0,0.0003567,2]
[340673718,1729642248416,-1016.38,0.000359,9]
[340673719,1729642248426,-290.24,0.00036754,2]
[340673720,1729642248437,-180.38713943,0.000372,103]
[340673721,1729642248446,-500.0,0.00038,120]
[340673722,1729642248457,-152.28,0.00038048,2]
[340673723,1729642248467,-264.29,0.00038062,2]
[340673724,1729642248477,-7163.11895626,0.00038647,15]
[340673725,1729642248487,-670.79,0.00038904,120]
[340673726,1729642248496,-5439.99,0.00039,2]
[340673727,1729642248506,-290.24,0.00039018,2]
[340673728,1729642248516,-636.83,0.00039229,120]
[340673729,1729642248526,-1000.0,0.00039237,2]
[340673730,1729642248535,-184.36,0.000397,31]
[340673731,1729642248547,-184.36,0.000397,31]
[340673732,1729642248559,-184.36,0.000397,31]
[340673733,1729642248568,-184.36,0.000397,31]
[340673734,1729642248577,-184.36,0.000397,31]
[340673735,1729642248586,-184.36,0.000397,31]
[340673736,1729642248595,-184.36,0.000397,31]
[340673737,1729642248604,-184.36,0.000397,31]
[340673738,1729642248613,-184.36,0.000397,31]
[340673739,1729642248623,-184.36,0.000397,31]
[340673740,1729642248633,-184.36,0.000397,31]
[340673741,1729642248642,-184.36,0.000397,31]
[340673742,1729642248652,-184.36,0.000397,31]
[340673743,1729642248662,-184.36,0.000397,31]
[340673744,1729642248672,-184.36,0.000397,31]
[340673745,1729642248682,-184.36,0.000397,31]